[Event "Titled Tuesday Blitz July 18 Late 2023"]
[White "D`Arruda, Ricardo D."]
[Black "Oro, Faustino"]
[WhiteFideId "100692"]
[BlackFideId "20000197"]
[WhiteElo "2520"]
[BlackElo "2777"]
[Result "0-1"]
[Round "5"]
[TimeControl "180+2"]
[Date "2023.07.18"]
[WhiteClock "0:00:15"]
[BlackClock "0:01:22"]
[Board "55"]

1. d4 {[%clk 0:00:43]}  Nf6 {[%clk 0:02:58]} 2. Nf3 {[%clk 0:00:44]}  e6 {[%clk 0:02:58]} 3. Nc3 {[%clk 0:00:45]}  d5 {[%clk 0:02:58]} 4. g3 {[%clk 0:00:46]}  c5 {[%clk 0:02:56]} 5. Bg2 {[%clk 0:00:46]}  Nc6 {[%clk 0:02:56]} 6. O-O {[%clk 0:00:47]}  Be7 {[%clk 0:02:56]} 7. Be3 {[%clk 0:00:48]}  cxd4 {[%clk 0:02:53]} 8. Nxd4 {[%clk 0:00:48]}  O-O {[%clk 0:02:52]} 9. Nxc6 {[%clk 0:00:47]}  bxc6 {[%clk 0:02:52]} 10. Bd4 {[%clk 0:00:47]}  Ba6 {[%clk 0:02:41]} 11. Re1 {[%clk 0:00:46]}  c5 {[%clk 0:02:30]} 12. Be5 {[%clk 0:00:45]}  Qb6 {[%clk 0:02:08]} 13. Rb1 {[%clk 0:00:45]}  Rad8 {[%clk 0:02:05]} 14. Qd2 {[%clk 0:00:44]}  d4 {[%clk 0:02:00]} 15. Ne4 {[%clk 0:00:43]}  Nd5 {[%clk 0:01:58]} 16. g4 {[%clk 0:00:41]}  f6 {[%clk 0:01:53]} 17. Bg3 {[%clk 0:00:41]}  e5 {[%clk 0:01:52]} 18. h4 {[%clk 0:00:38]}  c4 {[%clk 0:01:52]} 19. c3 {[%clk 0:00:32]}  Nc7 {[%clk 0:01:44]} 20. cxd4 {[%clk 0:00:31]}  exd4 {[%clk 0:01:44]} 21. Qf4 {[%clk 0:00:30]}  Nd5 {[%clk 0:01:37]} 22. Qf3 {[%clk 0:00:30]}  Nb4 {[%clk 0:01:33]} 23. Red1 {[%clk 0:00:29]}  d3 {[%clk 0:01:33]} 24. exd3 {[%clk 0:00:29]}  cxd3 {[%clk 0:01:31]} 25. a3 {[%clk 0:00:29]}  Nc2 {[%clk 0:01:32]} 26. b4 {[%clk 0:00:29]}  Nd4 {[%clk 0:01:32]} 27. Qe3 {[%clk 0:00:28]}  Ne2+ {[%clk 0:01:32]} 28. Kh2 {[%clk 0:00:28]}  Qxe3 {[%clk 0:01:32]} 29. fxe3 {[%clk 0:00:29]}  f5 {[%clk 0:01:30]} 30. gxf5 {[%clk 0:00:28]}  Rxf5 {[%clk 0:01:30]} 31. Bh3 {[%clk 0:00:27]}  Rf3 {[%clk 0:01:26]} 32. Be6+ {[%clk 0:00:24]}  Kh8 {[%clk 0:01:26]} 33. Bg4 {[%clk 0:00:23]}  Rxe3 {[%clk 0:01:25]} 34. Bf2 {[%clk 0:00:22]}  Rxe4 {[%clk 0:01:23]} 35. Bf3 {[%clk 0:00:22]}  Rf4 {[%clk 0:01:23]} 36. Kg2 {[%clk 0:00:15]}  Rdf8 {[%clk 0:01:22]} 0-1


[Site "https://www.chess.com"]

[Event "Titled Tuesday Blitz July 18 Late 2023"]
[White "Matinian, Nikita"]
[Black "Leenhouts, Koen"]
[WhiteFideId "24129100"]
[BlackFideId "1008439"]
[WhiteElo "2735"]
[BlackElo "2517"]
[Result "1-0"]
[Round "5"]
[TimeControl "180+2"]
[Date "2023.07.18"]
[WhiteClock "0:00:18"]
[BlackClock "0:00:02"]
[Board "56"]

1. e4 {[%clk 0:02:59]}  e6 {[%clk 0:02:59]} 2. d4 {[%clk 0:02:58]}  d5 {[%clk 0:03:00]} 3. Nc3 {[%clk 0:02:59]}  Bb4 {[%clk 0:02:59]} 4. e5 {[%clk 0:02:59]}  c5 {[%clk 0:02:59]} 5. a3 {[%clk 0:03:00]}  Bxc3+ {[%clk 0:02:59]} 6. bxc3 {[%clk 0:03:01]}  Qc7 {[%clk 0:02:54]} 7. h4 {[%clk 0:03:00]}  b6 {[%clk 0:02:50]} 8. h5 {[%clk 0:02:59]}  h6 {[%clk 0:02:49]} 9. Qg4 {[%clk 0:02:55]}  Kf8 {[%clk 0:02:45]} 10. Rh3 {[%clk 0:02:53]}  Ne7 {[%clk 0:02:43]} 11. Rf3 {[%clk 0:02:34]}  Bd7 {[%clk 0:02:16]} 12. Ne2 {[%clk 0:02:22]}  Nbc6 {[%clk 0:02:14]} 13. Nf4 {[%clk 0:02:22]}  Nf5 {[%clk 0:02:05]} 14. Ne2 {[%clk 0:01:25]}  Rc8 {[%clk 0:01:39]} 15. Bd2 {[%clk 0:01:22]}  cxd4 {[%clk 0:01:26]} 16. cxd4 {[%clk 0:01:21]}  Ncxd4 {[%clk 0:01:25]} 17. Nxd4 {[%clk 0:01:16]}  Qxe5+ {[%clk 0:01:25]} 18. Be3 {[%clk 0:01:16]}  Ba4 {[%clk 0:00:57]} 19. Bd3 {[%clk 0:01:07]}  Bxc2 {[%clk 0:00:53]} 20. Bxc2 {[%clk 0:00:57]}  Nxd4 {[%clk 0:00:47]} 21. Qxd4 {[%clk 0:00:48]}  Qxd4 {[%clk 0:00:48]} 22. Bxd4 {[%clk 0:00:48]}  Rxc2 {[%clk 0:00:48]} 23. Rc3 {[%clk 0:00:46]}  Rxc3 {[%clk 0:00:44]} 24. Bxc3 {[%clk 0:00:47]}  f6 {[%clk 0:00:45]} 25. f4 {[%clk 0:00:47]}  Ke7 {[%clk 0:00:41]} 26. a4 {[%clk 0:00:47]}  Rc8 {[%clk 0:00:39]} 27. Kd2 {[%clk 0:00:47]}  Rc4 {[%clk 0:00:36]} 28. g3 {[%clk 0:00:47]}  d4 {[%clk 0:00:33]} 29. Bb2 {[%clk 0:00:47]}  e5 {[%clk 0:00:32]} 30. Kd3 {[%clk 0:00:47]}  Rc6 {[%clk 0:00:28]} 31. a5 {[%clk 0:00:46]}  b5 {[%clk 0:00:27]} 32. a6 {[%clk 0:00:46]}  Ke6 {[%clk 0:00:26]} 33. Ra5 {[%clk 0:00:45]}  b4 {[%clk 0:00:19]} 34. g4 {[%clk 0:00:30]}  b3 {[%clk 0:00:17]} 35. f5+ {[%clk 0:00:30]}  Kd7 {[%clk 0:00:14]} 36. Rb5 {[%clk 0:00:30]}  Rxa6 {[%clk 0:00:13]} 37. Rxb3 {[%clk 0:00:23]}  Kc6 {[%clk 0:00:13]} 38. Rb8 {[%clk 0:00:21]}  Rb6 {[%clk 0:00:09]} 39. Rxb6+ {[%clk 0:00:21]}  axb6 {[%clk 0:00:09]} 40. Ba3 {[%clk 0:00:21]}  Kd5 {[%clk 0:00:09]} 41. Bf8 {[%clk 0:00:22]}  e4+ {[%clk 0:00:09]} 42. Ke2 {[%clk 0:00:22]}  b5 {[%clk 0:00:10]} 43. Bxg7 {[%clk 0:00:22]}  b4 {[%clk 0:00:10]} 44. Bxh6 {[%clk 0:00:23]}  e3 {[%clk 0:00:09]} 45. Bf8 {[%clk 0:00:22]}  b3 {[%clk 0:00:07]} 46. Ba3 {[%clk 0:00:22]}  Ke4 {[%clk 0:00:08]} 47. h6 {[%clk 0:00:23]}  d3+ {[%clk 0:00:08]} 48. Kd1 {[%clk 0:00:19]}  Kf3 {[%clk 0:00:08]} 49. h7 {[%clk 0:00:19]}  d2 {[%clk 0:00:03]} 50. h8=Q {[%clk 0:00:18]}  e2+ {[%clk 0:00:03]} 51. Kxd2 {[%clk 0:00:18]}  Kf2 {[%clk 0:00:02]} 52. Qh2+ {[%clk 0:00:18]} 1-0


[Site "https://www.chess.com"]

[Event "Titled Tuesday Blitz July 18 Late 2023"]
[White "Shapiro, Viktor"]
[Black "Alex_Sahakyan2006"]
[WhiteFideId "4175700"]
[WhiteElo "2496"]
[BlackElo "2658"]
[Result "0-1"]
[Round "5"]
[TimeControl "180+2"]
[Date "2023.07.18"]
[WhiteClock "0:00:07"]
[BlackClock "0:00:04"]
[Board "59"]

1. c4 {[%clk 0:02:59]}  Nf6 {[%clk 0:02:58]} 2. Nc3 {[%clk 0:03:00]}  e6 {[%clk 0:02:48]} 3. d4 {[%clk 0:02:55]}  d5 {[%clk 0:02:38]} 4. Nf3 {[%clk 0:02:54]}  h6 {[%clk 0:02:37]} 5. e3 {[%clk 0:02:43]}  a6 {[%clk 0:02:34]} 6. a4 {[%clk 0:02:21]}  Bb4 {[%clk 0:02:29]} 7. g4 {[%clk 0:02:09]}  dxc4 {[%clk 0:02:06]} 8. Bxc4 {[%clk 0:02:08]}  c5 {[%clk 0:02:06]} 9. Rg1 {[%clk 0:02:02]}  cxd4 {[%clk 0:01:57]} 10. Nxd4 {[%clk 0:01:58]}  e5 {[%clk 0:01:43]} 11. Nf5 {[%clk 0:01:54]}  Qxd1+ {[%clk 0:01:41]} 12. Kxd1 {[%clk 0:01:54]}  Bxf5 {[%clk 0:01:42]} 13. gxf5 {[%clk 0:01:54]}  O-O {[%clk 0:01:33]} 14. Kc2 {[%clk 0:01:28]}  Rc8 {[%clk 0:01:27]} 15. Bb3 {[%clk 0:00:58]}  Nc6 {[%clk 0:01:20]} 16. Bd2 {[%clk 0:00:51]}  Ne7 {[%clk 0:00:54]} 17. Raf1 {[%clk 0:00:22]}  Nxf5 {[%clk 0:00:51]} 18. f4 {[%clk 0:00:22]}  e4 {[%clk 0:00:26]} 19. Kb1 {[%clk 0:00:16]}  Kf8 {[%clk 0:00:10]} 20. Nxe4 {[%clk 0:00:16]}  Bxd2 {[%clk 0:00:10]} 21. Nxd2 {[%clk 0:00:16]}  Nxe3 {[%clk 0:00:10]} 22. Re1 {[%clk 0:00:16]}  Re8 {[%clk 0:00:10]} 23. Nf3 {[%clk 0:00:15]}  Ned5 {[%clk 0:00:10]} 24. f5 {[%clk 0:00:13]}  Rxe1+ {[%clk 0:00:09]} 25. Rxe1 {[%clk 0:00:13]}  Re8 {[%clk 0:00:09]} 26. Rd1 {[%clk 0:00:13]}  Re3 {[%clk 0:00:04]} 27. Nd4 {[%clk 0:00:12]}  Rh3 {[%clk 0:00:02]} 28. Rc1 {[%clk 0:00:11]}  Rxh2 {[%clk 0:00:02]} 29. Rc8+ {[%clk 0:00:11]}  Ke7 {[%clk 0:00:02]} 30. Rb8 {[%clk 0:00:12]}  b6 {[%clk 0:00:03]} 31. Rb7+ {[%clk 0:00:10]}  Kd6 {[%clk 0:00:03]} 32. Rxf7 {[%clk 0:00:10]}  Nb4 {[%clk 0:00:04]} 33. Kc1 {[%clk 0:00:08]}  Ne4 {[%clk 0:00:04]} 34. Rxg7 {[%clk 0:00:07]}  Nd3+ {[%clk 0:00:03]} 35. Kd1 {[%clk 0:00:07]}  Rd2# {[%clk 0:00:04]} 0-1


[Site "https://www.chess.com"]

[Event "Titled Tuesday Blitz July 18 Late 2023"]
[White "Tarhan, Adar"]
[Black "Bueno, Alfeu Junior Varela"]
[WhiteFideId "34544712"]
[BlackFideId "2108879"]
[WhiteElo "2599"]
[BlackElo "2413"]
[Result "1-0"]
[Round "5"]
[TimeControl "180+2"]
[Date "2023.07.18"]
[WhiteClock "0:01:23"]
[BlackClock "0:00:07"]
[Board "62"]

1. d4 {[%clk 0:03:00]}  e6 {[%clk 0:02:59]} 2. Bf4 {[%clk 0:03:00]}  f5 {[%clk 0:02:59]} 3. Nd2 {[%clk 0:02:59]}  Nf6 {[%clk 0:02:57]} 4. e3 {[%clk 0:02:57]}  b6 {[%clk 0:02:57]} 5. Bd3 {[%clk 0:02:57]}  Bb7 {[%clk 0:02:57]} 6. f3 {[%clk 0:02:58]}  Nh5 {[%clk 0:02:51]} 7. Bg3 {[%clk 0:02:54]}  Nxg3 {[%clk 0:02:43]} 8. hxg3 {[%clk 0:02:55]}  Qg5 {[%clk 0:02:38]} 9. Kf2 {[%clk 0:02:54]}  Bd6 {[%clk 0:02:18]} 10. f4 {[%clk 0:02:54]}  Qf6 {[%clk 0:02:16]} 11. c3 {[%clk 0:02:53]}  Nc6 {[%clk 0:02:16]} 12. e4 {[%clk 0:02:53]}  fxe4 {[%clk 0:02:10]} 13. Nxe4 {[%clk 0:02:54]}  Qf8 {[%clk 0:02:07]} 14. Nxd6+ {[%clk 0:02:51]}  Qxd6 {[%clk 0:01:53]} 15. Qh5+ {[%clk 0:02:46]}  Kd8 {[%clk 0:01:52]} 16. Nf3 {[%clk 0:02:43]}  Kc8 {[%clk 0:01:37]} 17. Qf7 {[%clk 0:02:39]}  Qe7 {[%clk 0:01:14]} 18. Qxe7 {[%clk 0:01:49]}  Nxe7 {[%clk 0:01:15]} 19. Bxh7 {[%clk 0:01:47]}  Bxf3 {[%clk 0:01:11]} 20. gxf3 {[%clk 0:01:48]}  g6 {[%clk 0:01:11]} 21. g4 {[%clk 0:01:46]}  Kb7 {[%clk 0:01:09]} 22. Rh6 {[%clk 0:01:46]}  Raf8 {[%clk 0:01:02]} 23. Rah1 {[%clk 0:01:45]}  Rxf4 {[%clk 0:00:58]} 24. Bxg6 {[%clk 0:01:43]}  Rxh6 {[%clk 0:00:56]} 25. Rxh6 {[%clk 0:01:41]}  c6 {[%clk 0:00:32]} 26. Be8 {[%clk 0:01:39]}  Kc7 {[%clk 0:00:30]} 27. Rh7 {[%clk 0:01:38]}  Kd8 {[%clk 0:00:29]} 28. Bh5 {[%clk 0:01:38]}  Nd5 {[%clk 0:00:28]} 29. Kg3 {[%clk 0:01:36]}  Rf8 {[%clk 0:00:27]} 30. g5 {[%clk 0:01:36]}  Nf4 {[%clk 0:00:18]} 31. Bf7 {[%clk 0:01:35]}  Ke7 {[%clk 0:00:16]} 32. Kxf4 {[%clk 0:01:26]}  Rxf7+ {[%clk 0:00:16]} 33. Rxf7+ {[%clk 0:01:26]}  Kxf7 {[%clk 0:00:17]} 34. Ke5 {[%clk 0:01:27]}  Ke7 {[%clk 0:00:16]} 35. f4 {[%clk 0:01:21]}  d6+ {[%clk 0:00:15]} 36. Ke4 {[%clk 0:01:22]}  Kf7 {[%clk 0:00:14]} 37. f5 {[%clk 0:01:22]}  exf5+ {[%clk 0:00:07]} 38. Kxf5 {[%clk 0:01:23]} 1-0


[Site "https://www.chess.com"]

[Event "Titled Tuesday Blitz July 18 Late 2023"]
[White "Willy, Stephen"]
[Black "Hajiyev, Kanan"]
[WhiteFideId "30981468"]
[BlackFideId "13404148"]
[WhiteElo "2403"]
[BlackElo "2560"]
[Result "1-0"]
[Round "5"]
[TimeControl "180+2"]
[Date "2023.07.18"]
[WhiteClock "0:00:16"]
[BlackClock "0:00:00"]
[Board "63"]

1. e4 {[%clk 0:03:00]}  c6 {[%clk 0:03:00]} 2. d4 {[%clk 0:02:58]}  d5 {[%clk 0:03:01]} 3. e5 {[%clk 0:02:53]}  a6 {[%clk 0:03:01]} 4. c4 {[%clk 0:02:50]}  Bf5 {[%clk 0:03:01]} 5. Qb3 {[%clk 0:02:46]}  Qd7 {[%clk 0:02:43]} 6. Nc3 {[%clk 0:02:45]}  e6 {[%clk 0:02:43]} 7. Nf3 {[%clk 0:02:30]}  Ne7 {[%clk 0:02:28]} 8. c5 {[%clk 0:02:27]}  Qc7 {[%clk 0:02:16]} 9. Be2 {[%clk 0:02:13]}  Nd7 {[%clk 0:02:15]} 10. O-O {[%clk 0:02:07]}  f6 {[%clk 0:02:10]} 11. exf6 {[%clk 0:02:03]}  Nxf6 {[%clk 0:02:09]} 12. Re1 {[%clk 0:01:57]}  Ng6 {[%clk 0:02:00]} 13. Na4 {[%clk 0:01:54]}  Be7 {[%clk 0:01:53]} 14. Bd3 {[%clk 0:01:50]}  O-O {[%clk 0:01:46]} 15. Bxf5 {[%clk 0:01:39]}  exf5 {[%clk 0:01:45]} 16. Ne5 {[%clk 0:01:38]}  Nxe5 {[%clk 0:01:39]} 17. Rxe5 {[%clk 0:01:39]}  Ng4 {[%clk 0:01:39]} 18. Bf4 {[%clk 0:01:31]}  Nxe5 {[%clk 0:01:20]} 19. Bxe5 {[%clk 0:01:32]}  Qd7 {[%clk 0:01:01]} 20. Nb6 {[%clk 0:01:31]}  Qd8 {[%clk 0:00:52]} 21. Nxa8 {[%clk 0:01:24]}  Qxa8 {[%clk 0:00:53]} 22. Re1 {[%clk 0:01:20]}  Rf7 {[%clk 0:00:48]} 23. f4 {[%clk 0:01:16]}  Qc8 {[%clk 0:00:48]} 24. a4 {[%clk 0:01:07]}  Bh4 {[%clk 0:00:48]} 25. Re3 {[%clk 0:01:00]}  Bd8 {[%clk 0:00:48]} 26. Qc3 {[%clk 0:00:49]}  Qe6 {[%clk 0:00:36]} 27. Bxg7 {[%clk 0:00:46]}  Qd7 {[%clk 0:00:33]} 28. Be5 {[%clk 0:00:44]}  Bf6 {[%clk 0:00:30]} 29. Rg3+ {[%clk 0:00:36]}  Kh8 {[%clk 0:00:25]} 30. Qe3 {[%clk 0:00:35]}  Qe6 {[%clk 0:00:20]} 31. h4 {[%clk 0:00:33]}  h6 {[%clk 0:00:17]} 32. Rg6 {[%clk 0:00:32]}  Kh7 {[%clk 0:00:09]} 33. Qg3 {[%clk 0:00:26]}  Qe7 {[%clk 0:00:03]} 34. h5 {[%clk 0:00:20]}  Bxe5 {[%clk 0:00:00]} 35. Rxh6+ {[%clk 0:00:16]} 1-0


[Site "https://www.chess.com"]

[Event "Titled Tuesday Blitz July 18 Late 2023"]
[White "Marosi, Levente"]
[Black "Djordjevic, Dejan N"]
[WhiteFideId "747181"]
[BlackFideId "913316"]
[WhiteElo "2540"]
[BlackElo "2092"]
[Result "1-0"]
[Round "5"]
[TimeControl "180+2"]
[Date "2023.07.18"]
[WhiteClock "0:00:04"]
[BlackClock "0:00:00"]
[Board "66"]

1. e4 {[%clk 0:03:00]}  c5 {[%clk 0:02:59]} 2. Nf3 {[%clk 0:03:00]}  Nc6 {[%clk 0:02:59]} 3. d4 {[%clk 0:02:59]}  cxd4 {[%clk 0:02:59]} 4. Nxd4 {[%clk 0:03:00]}  Nf6 {[%clk 0:02:59]} 5. Nc3 {[%clk 0:02:57]}  Qb6 {[%clk 0:02:58]} 6. Nb3 {[%clk 0:02:54]}  e6 {[%clk 0:02:58]} 7. Qe2 {[%clk 0:02:53]}  a6 {[%clk 0:02:52]} 8. Bd2 {[%clk 0:02:25]}  d6 {[%clk 0:02:50]} 9. O-O-O {[%clk 0:02:22]}  Be7 {[%clk 0:02:50]} 10. Kb1 {[%clk 0:02:16]}  Qc7 {[%clk 0:02:50]} 11. f4 {[%clk 0:02:14]}  b5 {[%clk 0:02:50]} 12. a3 {[%clk 0:02:13]}  Rb8 {[%clk 0:02:49]} 13. g4 {[%clk 0:02:13]}  b4 {[%clk 0:02:41]} 14. axb4 {[%clk 0:02:13]}  Nxb4 {[%clk 0:02:41]} 15. Bg2 {[%clk 0:01:47]}  a5 {[%clk 0:02:38]} 16. g5 {[%clk 0:01:43]}  Ba6 {[%clk 0:02:32]} 17. Qf3 {[%clk 0:01:29]}  Nd7 {[%clk 0:02:29]} 18. Bf1 {[%clk 0:01:22]}  a4 {[%clk 0:02:16]} 19. Nd4 {[%clk 0:01:14]}  Bxf1 {[%clk 0:02:02]} 20. Rhxf1 {[%clk 0:01:15]}  g6 {[%clk 0:01:44]} 21. Rc1 {[%clk 0:00:57]}  Qc4 {[%clk 0:01:30]} 22. Be3 {[%clk 0:00:33]}  a3 {[%clk 0:01:16]} 23. Qe2 {[%clk 0:00:25]}  Qxe2 {[%clk 0:01:03]} 24. Ndxe2 {[%clk 0:00:20]}  axb2 {[%clk 0:01:03]} 25. Rcd1 {[%clk 0:00:17]}  Nc5 {[%clk 0:00:57]} 26. Bxc5 {[%clk 0:00:16]}  dxc5 {[%clk 0:00:57]} 27. e5 {[%clk 0:00:16]}  O-O {[%clk 0:00:46]} 28. Ne4 {[%clk 0:00:16]}  c4 {[%clk 0:00:42]} 29. N2c3 {[%clk 0:00:15]}  Nc6 {[%clk 0:00:32]} 30. Rd7 {[%clk 0:00:09]}  Rb4 {[%clk 0:00:28]} 31. Rfd1 {[%clk 0:00:02]}  Ra8 {[%clk 0:00:27]} 32. Na2 {[%clk 0:00:03]}  Rba4 {[%clk 0:00:23]} 33. Nec3 {[%clk 0:00:03]}  Ra3 {[%clk 0:00:20]} 34. Rc7 {[%clk 0:00:03]}  Bb4 {[%clk 0:00:17]} 35. Kxb2 {[%clk 0:00:04]}  Na5 {[%clk 0:00:13]} 36. Rdd7 {[%clk 0:00:04]}  Bxc3+ {[%clk 0:00:13]} 37. Nxc3 {[%clk 0:00:04]}  Ra4 {[%clk 0:00:10]} 38. Nxa4 {[%clk 0:00:04]}  c3+ {[%clk 0:00:10]} 39. Nxc3 {[%clk 0:00:04]}  Rb8+ {[%clk 0:00:00]} 40. Kc1 {[%clk 0:00:04]} 1-0


[Site "https://www.chess.com"]

[Event "Titled Tuesday Blitz July 18 Late 2023"]
[White "Smirnov, Pavel"]
[Black "Ansh M Shah"]
[WhiteFideId "4123425"]
[BlackFideId "25033379"]
[WhiteElo "2696"]
[BlackElo "2499"]
[Result "1-0"]
[Round "5"]
[TimeControl "180+2"]
[Date "2023.07.18"]
[WhiteClock "0:02:12"]
[BlackClock "0:00:25"]
[Board "68"]

1. d4 {[%clk 0:03:00]}  Nf6 {[%clk 0:02:59]} 2. c4 {[%clk 0:03:00]}  g6 {[%clk 0:03:00]} 3. g3 {[%clk 0:03:00]}  Bg7 {[%clk 0:03:01]} 4. Nf3 {[%clk 0:03:01]}  O-O {[%clk 0:03:02]} 5. Bg2 {[%clk 0:03:02]}  d6 {[%clk 0:03:02]} 6. O-O {[%clk 0:03:03]}  Nc6 {[%clk 0:03:00]} 7. Nc3 {[%clk 0:03:04]}  e5 {[%clk 0:03:01]} 8. dxe5 {[%clk 0:03:04]}  Nxe5 {[%clk 0:03:00]} 9. Nxe5 {[%clk 0:03:04]}  dxe5 {[%clk 0:03:01]} 10. Qxd8 {[%clk 0:03:04]}  Rxd8 {[%clk 0:03:02]} 11. Bg5 {[%clk 0:03:04]}  Rd7 {[%clk 0:01:45]} 12. Rad1 {[%clk 0:02:56]}  c6 {[%clk 0:01:42]} 13. Na4 {[%clk 0:02:51]}  h6 {[%clk 0:01:32]} 14. Be3 {[%clk 0:02:44]}  Rxd1 {[%clk 0:01:22]} 15. Rxd1 {[%clk 0:02:43]}  Be6 {[%clk 0:01:23]} 16. b3 {[%clk 0:02:37]}  Nd7 {[%clk 0:00:58]} 17. h3 {[%clk 0:02:28]}  Re8 {[%clk 0:00:53]} 18. Bxa7 {[%clk 0:02:27]}  b5 {[%clk 0:00:47]} 19. cxb5 {[%clk 0:02:23]}  cxb5 {[%clk 0:00:47]} 20. Nc3 {[%clk 0:02:24]}  b4 {[%clk 0:00:46]} 21. Nb5 {[%clk 0:02:23]}  Rc8 {[%clk 0:00:36]} 22. Bd5 {[%clk 0:02:18]}  Bxh3 {[%clk 0:00:32]} 23. Bxf7+ {[%clk 0:02:15]}  Kxf7 {[%clk 0:00:30]} 24. Nd6+ {[%clk 0:02:15]}  Ke6 {[%clk 0:00:30]} 25. Nxc8 {[%clk 0:02:15]}  Bg4 {[%clk 0:00:28]} 26. f3 {[%clk 0:02:12]}  Bf5 {[%clk 0:00:25]} 27. e4 {[%clk 0:02:12]} 1-0


[Site "https://www.chess.com"]

[Event "Titled Tuesday Blitz July 18 Late 2023"]
[White "Adewumi, Tanitoluwa"]
[Black "Kaplan, Avi Harrison"]
[WhiteFideId "30966396"]
[BlackFideId "30934559"]
[WhiteElo "2652"]
[BlackElo "2498"]
[Result "1-0"]
[Round "5"]
[TimeControl "180+2"]
[Date "2023.07.18"]
[WhiteClock "0:00:42"]
[BlackClock "0:00:02"]
[Board "69"]

1. e4 {[%clk 0:02:35]}  a6 {[%clk 0:02:58]} 2. d4 {[%clk 0:02:34]}  b5 {[%clk 0:02:57]} 3. c4 {[%clk 0:02:33]}  b4 {[%clk 0:02:51]} 4. a3 {[%clk 0:02:32]}  e5 {[%clk 0:02:34]} 5. dxe5 {[%clk 0:02:23]}  Nc6 {[%clk 0:02:18]} 6. Nf3 {[%clk 0:02:21]}  Bc5 {[%clk 0:01:56]} 7. axb4 {[%clk 0:02:15]}  Nxb4 {[%clk 0:01:49]} 8. Nc3 {[%clk 0:02:11]}  Ne7 {[%clk 0:01:48]} 9. Bg5 {[%clk 0:02:09]}  h6 {[%clk 0:01:45]} 10. Bh4 {[%clk 0:02:08]}  Bb7 {[%clk 0:01:42]} 11. Be2 {[%clk 0:02:04]}  O-O {[%clk 0:01:32]} 12. O-O {[%clk 0:02:03]}  d6 {[%clk 0:01:21]} 13. exd6 {[%clk 0:02:01]}  Qxd6 {[%clk 0:01:20]} 14. Qxd6 {[%clk 0:01:59]}  Bxd6 {[%clk 0:01:21]} 15. e5 {[%clk 0:01:53]}  Bc5 {[%clk 0:00:53]} 16. Na4 {[%clk 0:01:45]}  Ng6 {[%clk 0:00:49]} 17. Nxc5 {[%clk 0:01:42]}  Bxf3 {[%clk 0:00:48]} 18. Bxf3 {[%clk 0:01:41]}  Nxh4 {[%clk 0:00:49]} 19. Bxa8 {[%clk 0:01:41]}  Rxa8 {[%clk 0:00:50]} 20. Ra4 {[%clk 0:01:38]}  a5 {[%clk 0:00:42]} 21. Nb3 {[%clk 0:01:36]}  Nc6 {[%clk 0:00:39]} 22. f4 {[%clk 0:01:31]}  Nf5 {[%clk 0:00:37]} 23. Rd1 {[%clk 0:01:25]}  Rb8 {[%clk 0:00:30]} 24. Rd3 {[%clk 0:01:13]}  Nb4 {[%clk 0:00:21]} 25. Rd7 {[%clk 0:01:07]}  Nc2 {[%clk 0:00:16]} 26. Nxa5 {[%clk 0:01:01]}  Rxb2 {[%clk 0:00:16]} 27. Rd2 {[%clk 0:00:52]}  Rb1+ {[%clk 0:00:16]} 28. Kf2 {[%clk 0:00:52]}  Nce3 {[%clk 0:00:16]} 29. h3 {[%clk 0:00:51]}  Rf1+ {[%clk 0:00:07]} 30. Ke2 {[%clk 0:00:50]}  Rg1 {[%clk 0:00:07]} 31. g4 {[%clk 0:00:50]}  Nf1 {[%clk 0:00:03]} 32. gxf5 {[%clk 0:00:48]}  Rg2+ {[%clk 0:00:03]} 33. Kxf1 {[%clk 0:00:48]}  Rxd2 {[%clk 0:00:04]} 34. Nc6 {[%clk 0:00:46]}  Rc2 {[%clk 0:00:04]} 35. Ne7+ {[%clk 0:00:44]}  Kh7 {[%clk 0:00:04]} 36. e6 {[%clk 0:00:43]}  fxe6 {[%clk 0:00:04]} 37. fxe6 {[%clk 0:00:44]}  h5 {[%clk 0:00:04]} 38. Nd5 {[%clk 0:00:44]}  Kg6 {[%clk 0:00:04]} 39. f5+ {[%clk 0:00:43]}  Kh7 {[%clk 0:00:02]} 40. e7 {[%clk 0:00:42]}  c5 {[%clk 0:00:02]} 41. e8=Q {[%clk 0:00:42]}  h4 {[%clk 0:00:02]} 42. Qg6+ {[%clk 0:00:41]}  Kh8 {[%clk 0:00:02]} 43. Ra8# {[%clk 0:00:42]} 1-0


[Site "https://www.chess.com"]